fUSD/lending_fUSD_20240709
["ID","MTS","AMOUNT","RATE_DAILY","PERIOD"]
[331552510,1720494638438,-300.53,0.00013699,2]
[331552513,1720494638455,-528.86,0.00013699,2]
[331552516,1720494638475,-424.66,0.00013699,2]
[331552518,1720494638493,-300.79,0.00013699,2]
[331552521,1720494638510,-150.0,0.00013699,2]
[331552524,1720494638527,-164.99,0.00013699,2]
[331552527,1720494638546,-150.0,0.00013699,2]
[331552530,1720494638562,-355.12,0.00013699,2]
[331552532,1720494638578,-424.66,0.00013699,2]
[331552535,1720494638598,-150.0,0.00013699,2]
[331552538,1720494638616,-355.12,0.00013699,2]
[331552539,1720494638633,-164.99,0.00013699,2]
[331552540,1720494638650,-150.0,0.00013699,2]
[331552541,1720494638667,-528.86,0.00013699,2]
[331552542,1720494638683,-150.0,0.00013699,2]
[331552543,1720494638703,-355.12,0.00013699,2]
[331552546,1720494638719,-150.0,0.00013699,2]
[331552548,1720494638736,-12775.20479459,0.00013736,2]
[331552551,1720494638752,-168.8,0.00013736,2]
[331552554,1720494638768,-399.6147,0.000138,2]
[331552556,1720494638784,-417.93936495,0.00013817,2]
[331552560,1720494638807,-160.39965838,0.00013873,2]
[331552563,1720494638829,-2025.16505038,0.00013873,2]
[331552567,1720494638852,-500.0,0.000139,2]
[331552570,1720494638872,-1000.0,0.000139,2]
[331552573,1720494638894,-4046.8911,0.000139,2]
[331552576,1720494638913,-1457.7567,0.000139,2]
[331552579,1720494638933,-7500.0,0.000139,2]
[331552582,1720494638953,-2334.04928829,0.000139,2]
[331552585,1720494638972,-329.81328524,0.000139,2]
[331552588,1720494638990,-306.0344,0.0001393,2]
[331552591,1720494639010,-100229.94345603,0.0001397,2]
[331552595,1720494639039,-3247.0,0.0001397,2]
[331552598,1720494639060,-7272.65439133,0.0001397,2]
[331552601,1720494639085,-426.04172257,0.0001397,2]
[331552604,1720494639107,-1063.62414582,0.0001397,2]
[331552608,1720494639129,-448.64,0.0001397,2]
[331552611,1720494639152,-11191.3720989,0.0001397,2]
[331552614,1720494639176,-1869.7443923,0.0001397,2]
[331552619,1720494639209,-126169.20761349,0.0001397,2]
[331552623,1720494639241,-1098.9999,0.0001397,2]
[331552626,1720494639267,-42503.81488358,0.0001397,2]
[331552630,1720494639290,-235.19869256,0.00013999,2]
[331552633,1720494639315,-320.30912063,0.00013999,2]
[331552636,1720494639333,-164.19756105,0.00013999,2]
[331552639,1720494639355,-484428.71126916,0.00014,2]
[331552642,1720494639381,-1168.91354638,0.00014,2]
[331552646,1720494639414,-1659.99434364,0.00014,2]
[331552650,1720494639439,-2040.00565636,0.00014,2]
[331552653,1720494639463,-3578.13546545,0.00014,2]
[331552675,1720494639725,-1011.12172614,0.00014,2]
[331552679,1720494639762,-667.538761,0.00014,2]
[331552715,1720494640117,-741.079999,0.00014,2]
[331552718,1720494640143,-1642.8995,0.00014,2]
[331552722,1720494640164,-529.37778124,0.00014,2]
[331552724,1720494640184,-3000.0,0.00014,2]
[331552725,1720494640205,-496.07624443,0.00014,2]
[331552726,1720494640226,-1286.6437952,0.00014,2]
[331552728,1720494640245,-41167.66283741,0.00014,2]
[331552731,1720494640268,-173700.62690797,0.00014,2]
[331552734,1720494640293,-133622.95458009,0.00014,2]
[331552738,1720494640319,-3856.33934384,0.00014,2]
[331552741,1720494640342,-6000.0,0.00014,2]
[331552744,1720494640363,-53524.26,0.00014,2]
[331552747,1720494640385,-1721.645,0.00014,2]
[331552750,1720494640408,-1973.8695523,0.00014,2]
[331552753,1720494640429,-74839.09920751,0.00014,2]
[331552756,1720494640451,-134367.21758748,0.00014,2]
[331552759,1720494640476,-1131.59228596,0.00014,2]
[331552762,1720494640498,-252.00214189,0.00014,2]
[331552765,1720494640520,-487.48347747,0.00014,2]
[331552905,1720494642914,-187.26252945,0.000139,2]
[331552906,1720494642931,-384.94747055,0.00014,2]
[331552907,1720494642951,-6584.2221912,0.00014,2]
[331552916,1720494644220,-2677.1854726,0.00014,2]
[331552917,1720494644238,-2942.80104,0.00014,2]
[331552918,1720494644255,-449.834,0.00014,2]
[331552919,1720494644273,-13289.23339859,0.00014,2]
[331552920,1720494644291,-1143.68478773,0.00014,2]
[331552925,1720494649451,-2746.08080776,0.00014,2]
[331552926,1720494649470,-3963.32370779,0.00014,2]
[331552934,1720494853024,3832.33947696,0.00011199,2]
[331552935,1720494857597,17554.63077378,0.00011199,2]
[331552936,1720494886120,10571.63003503,0.00011199,2]
[331552940,1720495014785,2401.83869291,0.00011199,2]
[331552951,1720495195748,1729.18164681,0.00011199,2]
[331552963,1720495471522,150.5,0.0001399,30]
[331552964,1720495472749,150.5,0.0001398,30]
[331552965,1720495473685,150.5,0.0001397,30]
[331552966,1720495521846,478.02,0.00010614,2]
[331552968,1720495585923,1345.06611903,0.00011199,2]
[331552972,1720495662344,1059.24540003,0.00011199,2]
[331552974,1720495668646,156.08426103,0.00011199,2]
[331552975,1720495684190,896.17503441,0.00011199,2]
[331552976,1720495709770,271.69990817,0.00011199,2]
[331552981,1720495763145,943.45007447,0.00011199,2]
[331552982,1720495778940,452.09762325,0.00011199,2]
[331552984,1720495781255,211.94997869,0.00011199,2]
[331552986,1720495820097,155.0,0.00011199,2]
[331552992,1720495832143,-510.59486603,0.00012302,2]
[331552993,1720495832153,-155.58133115,0.00012302,2]
[331552994,1720495832162,-169.87,0.0001244,2]
[331552995,1720495832172,-3497.97452828,0.00012467,2]
[331552996,1720495832736,-261.15578167,0.00012467,2]
[331552998,1720495832751,-1489.36969005,0.00012467,2]
[331553000,1720495832762,-200.0,0.00012468,2]
[331553002,1720495832772,-250.0,0.00012499,2]
[331553004,1720495832781,-478.02,0.00012878,2]
[331553006,1720495832791,-250.0,0.0001288,2]
[331553010,1720495832801,-494.46,0.00012934,2]
[331553013,1720495832810,-232.51299544,0.00012969,2]
[331553014,1720495832822,-261.94700456,0.00012969,2]
[331553015,1720495832831,-1000.0,0.00012988,2]
[331553016,1720495832842,-494.46,0.00013005,2]
[331553017,1720495832851,-494.46,0.0001304,2]
[331553018,1720495832861,-499.99,0.0001304,2]
[331553026,1720495833305,-195.86,0.00013067,2]
[331553027,1720495833368,-494.46,0.00013075,2]
[331553028,1720495833379,-528.86,0.000131,2]
[331553029,1720495833389,-528.86,0.000131,2]
[331553030,1720495833401,-528.86,0.000131,2]
[331553031,1720495833411,-528.86,0.000131,2]
[331553032,1720495833421,-494.46,0.00013111,2]
[331553033,1720495833431,-298.87875633,0.00013128,2]
[331553034,1720495833440,-494.46,0.00013146,2]
[331553035,1720495833450,-528.86,0.00013178,2]
[331553036,1720495833459,-150.0,0.00013178,2]
[331553037,1720495833469,-494.46,0.00013182,2]
[331553038,1720495833479,-528.86,0.000132,2]
[331553039,1720495833488,-161.15564188,0.00013213,2]
[331553040,1720495833498,-494.46,0.00013217,2]
[331553041,1720495833508,-494.46,0.00013253,2]
[331553042,1720495833517,-150.0,0.00013278,2]
[331553043,1720495833526,-528.86,0.00013278,2]
[331553044,1720495833536,-150.0,0.00013278,2]
[331553045,1720495833545,-494.46,0.00013288,2]
[331553046,1720495833555,-494.46,0.00013324,2]
[331553047,1720495833565,-494.46,0.00013359,2]
[331553048,1720495833574,-494.46,0.00013395,2]
[331553049,1720495833584,-494.46,0.0001343,2]
[331553050,1720495833594,-494.46,0.00013466,2]
[331553051,1720495833604,-494.46,0.00013501,2]
[331553052,1720495833613,-547.50514469,0.00013516,2]
[331553053,1720495833623,-494.46,0.00013537,2]
[331553054,1720495833633,-258.9678231,0.00013543,2]
[331553055,1720495833642,-258.9678231,0.00013543,2]
[331553056,1720495833652,-494.46,0.00013572,2]
[331553057,1720495833663,-283.57976287,0.00013574,2]
[331553058,1720495833683,-302.08733042,0.00013574,2]
[331553059,1720495833697,-200.0,0.000136,4]
[331553060,1720495833707,-494.46,0.00013608,2]
[331553061,1720495833718,-250.0,0.00013699,2]
[331553062,1720495833727,-1871.32,0.00013699,2]
[331553063,1720495833737,-1500.0,0.00013699,5]
[331553064,1720495833749,-478.02,0.00013699,2]
[331553065,1720495833760,-7072.12816443,0.00013699,2]
[331553066,1720495833772,-301.0,0.00013699,2]
[331553067,1720495833783,-3153.12701687,0.00013699,2]
[331553068,1720495833794,-6474.66691719,0.00013699,2]
[331553069,1720495833805,-4899.75139756,0.00013699,2]
[331553070,1720495833816,-1444.14581354,0.00013699,2]
[331553071,1720495833828,-13785.11069041,0.00013699,2]
[331553072,1720495833838,-500.0,0.000137,5]
[331553073,1720495833847,-12775.20479459,0.00013736,2]
[331553074,1720495833856,-765.01832607,0.0001379,2]
[331553075,1720495833866,-2641.9727,0.000138,2]
[331553076,1720495833875,-6502.6672,0.000138,2]
[331553077,1720495833885,-204.8573,0.000138,2]
[331553078,1720495833894,-700.0,0.000138,5]
[331553079,1720495833904,-2359.98316926,0.000138,2]
[331553080,1720495833914,-500.0,0.00013887,2]
[331553081,1720495833923,-200.0,0.00013887,2]
[331553082,1720495833932,-500.0,0.00013888,2]
[331553083,1720495833942,-200.0,0.00013888,2]
[331553084,1720495833951,-500.0,0.00013888,2]
[331553085,1720495833960,-500.0,0.00013888,2]
[331553086,1720495833970,-500.0,0.00013888,2]
[331553087,1720495833979,-200.0,0.00013888,2]
[331553088,1720495833988,-200.0,0.00013888,2]
[331553089,1720495833997,-417.93936495,0.00013889,2]
[331553090,1720495834007,-368.91,0.0001389,2]
[331553091,1720495834017,-158.68956804,0.000139,2]
[331553092,1720495834027,-44943.3572,0.000139,2]
[331553093,1720495834035,-528.86,0.000139,2]
[331553094,1720495834044,-1042.29,0.000139,2]
[331553095,1720495834054,-1000.0,0.000139,2]
[331553096,1720495834063,-500.0,0.000139,2]
[331553097,1720495834072,-39494.2863,0.000139,2]
[331553098,1720495834081,-73368.0908,0.000139,2]
[331553099,1720495834090,-312.1627,0.000139,2]
[331553100,1720495834099,-871.8101,0.000139,2]
[331553101,1720495834108,-159.69454477,0.000139,2]
[331553102,1720495834117,-166.76036687,0.000139,2]
[331553103,1720495834126,-1000.0,0.000139,5]
[331553104,1720495834135,-187.26252944,0.000139,2]
[331553105,1720495834144,-7500.0,0.000139,2]
[331553106,1720495834153,-1963.0551288,0.000139,2]
[331553107,1720495834163,-922.92340102,0.000139,2]
[331553108,1720495834172,-326.21886686,0.000139,2]
[331553109,1720495834180,-169.9300668,0.000139,2]
[331553110,1720495834190,-150.0,0.00013978,2]
[331553111,1720495834199,-528.86,0.00013978,2]
[331553112,1720495834208,-150.0,0.00013978,2]
[331553113,1720495834217,-279.48904405,0.0001399,2]
[331553114,1720495834228,-368.91,0.0001399,2]
[331553115,1720495834237,-368.91,0.0001399,2]
[331553116,1720495834246,-368.91,0.0001399,2]
[331553117,1720495834255,-368.91,0.0001399,2]
[331553118,1720495834265,-235.19869256,0.00013999,2]
[331553119,1720495834274,-580.67335458,0.00013999,2]
[331553120,1720495834283,-578.0,0.00014,2]
[331553121,1720495834292,-367424.11079992,0.00014,2]
[331553122,1720495834304,-9808.16827319,0.00014,2]
[331553123,1720495834315,-13431.17867272,0.00014,2]
[331553124,1720495834325,-572.88577079,0.00014,2]
[331553125,1720495834337,-284.1080006,0.00014,2]
[331553126,1720495834348,-775.19666386,0.00014,2]
[331553127,1720495834359,-1000.37172,0.00014,2]
[331553128,1720495834370,-27978.1165127,0.00014,2]
[331553129,1720495834384,-14355.45898269,0.00014,2]
[331553130,1720495834396,-1132.51470823,0.00014,2]
[331553131,1720495834407,-1022.98488966,0.00014,2]
[331553132,1720495834425,-440.0,0.00014,2]
[331553133,1720495834437,-1223.48265655,0.00014,2]
[331553134,1720495834448,-36504.4685872,0.00014,2]
[331553135,1720495834459,-436.64173545,0.00014,2]
[331553136,1720495834471,-312.75876885,0.00014,2]
[331553137,1720495834482,-281.19172138,0.00014,2]
[331553138,1720495834495,-640.17326139,0.00014,2]
[331553139,1720495834507,-251.88644517,0.00014,2]
[331553149,1720495838032,-654.99465127,0.00013472,2]
[331553151,1720495838042,-477.21243786,0.00013516,2]
[331553153,1720495838052,-528.0,0.00014,2]
[331553156,1720495838062,-68746.09453373,0.00014,2]
[331553158,1720495838074,-426.35735425,0.00014,2]
[331553160,1720495838086,-412.0,0.00014,2]
[331553163,1720495838109,-694136.01201369,0.00014,2]
[331553166,1720495838122,-590.05754824,0.00014,2]
[331553178,1720495838231,-1554.31453935,0.00014,2]
[331553180,1720495838243,-426673.88415512,0.00014,2]
[331553182,1720495838255,-1173.65274454,0.00014,2]
[331553183,1720495838269,-11800.0,0.00014,2]
[331553184,1720495838281,-1118.64598073,0.00014,2]
[331553185,1720495838293,-8119.95917606,0.00014,2]
[331553186,1720495838305,-28722.8141531,0.00014,2]
[331553187,1720495838317,-61580.89213633,0.00014,2]
[331553188,1720495838330,-16125.29401725,0.00014,2]
[331553418,1720495842658,-4112.87853256,0.00014,2]
[331553419,1720495842677,-35523.59493343,0.00014,2]
[331553420,1720495842689,-2844.67368354,0.00014,2]
[331553421,1720495842700,-1259.96086,0.00014,2]
[331553422,1720495842719,-538075.28779006,0.00014,2]
[331553423,1720495842730,-283.7203473,0.00014,2]
[331553424,1720495842740,-1337.50769,0.00014,2]
[331553425,1720495842751,-104318.24715303,0.00014,2]
[331553426,1720495842762,-1337.5077,0.0001405,2]
[331553427,1720495842772,-168.025341,0.00014247,2]
[331553428,1720495842783,-1337.50769,0.0001436,2]
[331553429,1720495842793,-173.67,0.00014463,2]
[331553431,1720495842803,-169.87,0.00014513,2]
[331553434,1720495842813,-150.56,0.00014521,2]
[331553436,1720495842823,-1000.0,0.00014612,2]
[331553438,1720495842834,-1337.5077,0.0001467,2]
[331553440,1720495842844,-250.0,0.00014881,2]
[331553442,1720495842854,-150.23533133,0.00014894,2]
[331553443,1720495842864,-1000.0,0.00014899,2]
[331553445,1720495842874,-1000.0,0.00014899,2]
[331553446,1720495842884,-1000.0,0.00014899,2]
[331553447,1720495842894,-1000.0,0.00014899,2]
[331553448,1720495842905,-1000.0,0.00014899,2]
[331553449,1720495842915,-1000.0,0.00014899,2]
[331553450,1720495842926,-1000.0,0.00014899,2]
[331553451,1720495842936,-1000.0,0.00014899,2]
[331553452,1720495842947,-1000.0,0.00014899,2]
[331553453,1720495842956,-1000.0,0.00014899,2]
[331553454,1720495842967,-1000.0,0.00014899,2]
[331553455,1720495842977,-1000.0,0.00014899,2]
[331553456,1720495842987,-1000.0,0.00014899,2]
[331553457,1720495842997,-1000.0,0.00014899,2]
[331553459,1720495843007,-1000.0,0.00014899,2]
[331553461,1720495843017,-1000.0,0.00014899,2]
[331553463,1720495843027,-1000.0,0.00014899,2]
[331553466,1720495843037,-1000.0,0.00014899,2]
[331553468,1720495843047,-1000.0,0.00014899,2]
[331553469,1720495843057,-1000.0,0.00014899,2]
[331553470,1720495843067,-1000.0,0.00014899,2]
[331553471,1720495843077,-1000.0,0.00014899,2]
[331553472,1720495843087,-1000.0,0.00014899,2]
[331553473,1720495843096,-1000.0,0.00014899,2]
[331553474,1720495843106,-1000.0,0.00014899,2]
[331553475,1720495843115,-1000.0,0.00014899,2]
[331553476,1720495843125,-1000.0,0.00014899,2]
[331553477,1720495843135,-1000.0,0.00014899,2]
[331553478,1720495843144,-1000.0,0.00014899,2]
[331553479,1720495843154,-1000.0,0.00014899,2]
[331553480,1720495843164,-731.0,0.00014899,2]
[331553481,1720495843180,-1337.5077,0.0001498,2]
[331553482,1720495843194,-24662.61558688,0.00015,2]
[331553483,1720495843204,-168.025341,0.00015068,2]
[331553484,1720495843214,-478.02,0.00015142,2]
[331553485,1720495843224,-1337.50769,0.000153,2]
[331553487,1720495843234,-227.27128939,0.00015335,2]
[331553488,1720495843244,-227.27128939,0.00015335,2]
[331553489,1720495843254,-525.01138954,0.00015579,2]
[331553490,1720495843263,-156.07276861,0.00015579,2]
[331553491,1720495843273,-721.02350962,0.00015579,2]
[331553492,1720495843283,-413.0,0.000157,2]
[331553493,1720495843293,-168.025341,0.0001589,2]
[331553494,1720495843306,-150.0,0.00016003,2]
[331553495,1720495843316,-150.0,0.000162,2]
[331553496,1720495843326,-1000.0,0.00016235,2]
[331553497,1720495843336,-195.86,0.00016334,2]
[331553498,1720495843346,-150.0,0.00016398,2]
[331553499,1720495843356,-491.0,0.000165,2]
[331553500,1720495843367,-2359.98316919,0.00016567,2]
[331553501,1720495843378,-169.87,0.00016586,2]
[331553502,1720495843388,-150.0,0.00016595,2]
[331553503,1720495843398,-1963.0551288,0.00016614,2]
[331553504,1720495843408,-168.025341,0.00016712,2]
[331553505,1720495843418,-150.0,0.00016793,2]
[331553506,1720495843440,-685.8498277,0.00016824,2]
[331553507,1720495843450,-1005.0,0.000169,2]
[331553508,1720495843460,-150.0,0.00016991,2]
[331553509,1720495843470,-150.0,0.00017188,2]
[331553510,1720495843480,-214.5,0.00017215,2]
[331553511,1720495843491,-150.0,0.00017386,2]
[331553512,1720495843500,-478.02,0.00017405,2]
[331553513,1720495843511,-168.025341,0.00017534,2]
[331553514,1720495843520,-150.0,0.00017583,2]
[331553515,1720495843530,-150.65796301,0.00017682,2]
[331553516,1720495843540,-150.11947225,0.00017709,2]
[331553517,1720495843550,-166.76036686,0.00017723,2]
[331553518,1720495843559,-207.51784159,0.00017781,2]
[331553519,1720495843569,-359130.76896,0.000178,3]
[331553520,1720495843579,-1000.0,0.00017859,2]
[331553521,1720495843588,-251913.90301482,0.000179,3]
[331553522,1720495843602,-15082.84815857,0.000179,3]
[331553523,1720495843614,-412.0,0.000179,3]
[331553524,1720495843634,-46849.94318308,0.000179,3]
[331553525,1720495843646,-77776.16338753,0.000179,3]
[331553526,1720495843657,-281.11710029,0.0001799,2]
[331553527,1720495843667,-499.63487078,0.00018,2]
[331553528,1720495843682,-34111.56530273,0.00018088,2]
[331553529,1720495843692,-326.21886683,0.00018314,2]
[331553530,1720495843702,-168.025341,0.00018356,2]
[331553531,1720495843712,-158.68956803,0.0001865,2]
[331553532,1720495843722,-169.87,0.00018659,2]
[331553533,1720495843732,-192.16,0.00018849,30]
[331553534,1720495843742,-179.32,0.000189,2]
[331553535,1720495843753,-5857.399,0.00018995,2]
[331553536,1720495843763,-1665.418,0.00018995,2]
[331553537,1720495843773,-292.109,0.00018995,2]
[331553538,1720495843783,-5224.629,0.00018995,2]
[331553539,1720495843794,-1665.0,0.00018995,2]
[331553540,1720495843804,-168.731,0.00018995,2]
[331553541,1720495843814,-1199.0,0.00018995,2]
[331553542,1720495843824,-362.736,0.00018995,2]
[331553543,1720495843834,-1071.0,0.00018995,2]
[331553544,1720495843844,-176.2875111,0.00019,2]
[331553545,1720495843854,-5000.0,0.00019,2]
[331553546,1720495843864,-27713.73743089,0.00019,2]
[331553547,1720495843875,-155.03846297,0.00019,2]
[331553548,1720495843884,-155.34468218,0.00019,2]
[331553549,1720495843894,-300.0,0.00019,2]
[331553550,1720495843904,-5473.66,0.00019178,2]
[331553551,1720495843914,-478.02,0.00019178,2]
[331553552,1720495843930,-168.025341,0.00019178,2]
[331553553,1720495843940,-214.5,0.00019314,2]
[331553554,1720495843951,-1963.0551288,0.00019329,2]
[331553555,1720495843961,-2359.98316919,0.00019334,2]
[331553556,1720495844497,-4749.17411891,0.0001937,2]
[331553557,1720495844529,-529.13407162,0.00019451,2]
[331553558,1720495844540,-1000.0,0.00019483,2]
[331553559,1720495844550,-169.55,0.00019531,2]
[331553560,1720495844560,-195.86,0.00019601,2]
[331553561,1720495844570,-478.02,0.00019669,2]
[331553562,1720495844580,-3813.75050036,0.0002,4]
[331553563,1720495844590,-188.36389284,0.0002,2]
[331553564,1720495844600,-868.48853131,0.0002,2]
[331553565,1720495844611,-3175.29420097,0.0002,2]
[331553566,1720495844621,-258.0,0.0002,2]
[331553567,1720495844630,-6100.0,0.0002,7]
[331553568,1720495844640,-168.025341,0.0002,2]
[331553569,1720495844650,-564.66878474,0.0002008,2]
[331553570,1720495844660,-717.20101687,0.00020102,2]
[331553571,1720495844670,-2020.49250877,0.000202,2]
[331553572,1720495844685,-6284.33833221,0.0002079,2]
[331553573,1720495844694,-6284.33833221,0.0002079,2]
[331553574,1720495844704,-168.025341,0.00020822,2]
[331553575,1720495844713,-169.98846804,0.000209,2]
[331553576,1720495844725,-530.58475367,0.00021,2]
[331553577,1720495844734,-225.44188277,0.00021,2]
[331553578,1720495844744,-180.0,0.00021397,2]
[331553579,1720495844755,-214.5,0.00021412,2]
[331553580,1720495844764,-386.94,0.00021644,2]
[331553581,1720495844774,-152.51,0.00021644,2]
[331553582,1720495844783,-152.93,0.00021644,2]
[331553583,1720495844793,-616.66294552,0.00021752,2]
[331553584,1720495844802,-465.6900231,0.0002176,2]
[331553585,1720495844812,-218.49,0.00021918,2]
[331553586,1720495844822,-556.35,0.00021918,2]
[331553587,1720495844831,-150.0,0.00021918,2]
[331553588,1720495844841,-150.0,0.00021918,2]
[331553589,1720495844851,-150.0,0.00021918,2]
[331553590,1720495844861,-150.0,0.00021918,2]
[331553591,1720495844871,-150.0,0.00021918,2]
[331553592,1720495844880,-150.0,0.00021918,2]
[331553593,1720495844890,-150.0,0.00021918,2]
[331553594,1720495844900,-478.02,0.00021933,2]
[331553595,1720495844912,-291.0,0.00021995,2]
[331553596,1720495844923,-1217.595,0.00021995,2]
[331553597,1720495844933,-1199.0,0.00021995,2]
[331553598,1720495844942,-34317.35135632,0.00022,15]
[331553599,1720495844952,-3748.66203108,0.00022,4]
[331553600,1720495844962,-1963.0551288,0.00022043,2]
[331553601,1720495844972,-2359.98316919,0.00022102,2]
[331553602,1720495844981,-326.21886683,0.00022729,2]
[331553603,1720495844991,-366.15462543,0.00023029,2]
[331553604,1720495845000,-158.68956803,0.000234,2]
[331553605,1720495845010,-922.92340102,0.000234,2]
[331553606,1720495845019,-214.5,0.00023511,2]
[331553607,1720495845029,-1927.41493552,0.00023999,2]
[331553608,1720495845039,-478.02,0.00024197,2]
[331553609,1720495845048,-1963.0551288,0.00024757,2]
[331553610,1720495845057,-2359.98316919,0.00024869,2]
[331553611,1720495845067,-1199.0,0.00024995,2]
[331553612,1720495845077,-932.1687505,0.00025,2]
[331553613,1720495845087,-669.37886152,0.00025,30]
[331553614,1720495845096,-225.61351204,0.00025,2]
[331553615,1720495845105,-155.0,0.00025,2]
[331553616,1720495845115,-1984.19374329,0.00025,2]
[331553617,1720495845124,-326.61914547,0.00025,2]
[331553618,1720495845133,-621.98,0.00025205,2]
[331553619,1720495845143,-214.5,0.0002561,2]
[331553620,1720495845153,-150.0,0.00026079,2]
[331553621,1720495845162,-500.0,0.00026122,2]
[331553622,1720495845173,-478.02,0.00026461,2]
[331553623,1720495845183,-281.08660351,0.0002657,3]
[331553624,1720495845193,-4075.3066503,0.00026961,28]
[331553625,1720495845203,-448.46472787,0.00027,2]
[331553626,1720495845212,-155.0,0.00027,2]
[331553627,1720495845222,-550.96050815,0.00027,2]
[331553628,1720495845231,-155.0,0.00027,2]
[331553629,1720495845241,-218.24420846,0.00027,7]
[331553630,1720495845251,-883.36136781,0.00027,7]
[331553631,1720495845260,-155.0,0.00027,2]
[331553632,1720495845270,-500.0,0.00027,10]
[331553633,1720495845280,-326.21886683,0.00027143,2]
[331553634,1720495845289,-500.0,0.00027218,2]
[331553635,1720495845299,-500.0,0.00027397,10]
[331553636,1720495845308,-500.0,0.00027397,10]
[331553637,1720495845319,-500.0,0.00027397,10]
[331553638,1720495845329,-500.0,0.00027397,10]
[331553639,1720495845338,-500.0,0.00027397,10]
[331553640,1720495845347,-500.0,0.00027397,10]
[331553641,1720495845357,-500.0,0.00027397,10]
[331553642,1720495845366,-500.0,0.00027397,10]
[331553643,1720495845375,-500.0,0.00027397,10]
[331553644,1720495845385,-500.0,0.00027397,10]
[331553645,1720495845394,-500.0,0.00027397,10]
[331553646,1720495845403,-500.0,0.00027397,10]
[331553647,1720495845413,-500.0,0.00027397,10]
[331553648,1720495845423,-500.0,0.00027397,10]
[331553649,1720495845433,-500.0,0.00027397,10]
[331553650,1720495845442,-500.0,0.00027397,10]
[331553651,1720495845452,-500.0,0.00027397,10]
[331553652,1720495845462,-500.0,0.00027397,10]
[331553653,1720495845472,-500.0,0.00027397,10]
[331553654,1720495845482,-457.88354013,0.00027397,10]
[331553655,1720495845492,-4641.79,0.00027397,10]
[331553656,1720495845501,-1963.0551288,0.00027471,2]
[331553657,1720495845511,-2359.98316919,0.00027636,2]
[331553658,1720495845521,-214.5,0.00027708,3]
[331553659,1720495845530,-386.94,0.00027714,2]
[331553660,1720495845540,-600.0,0.00027766,2]
[331553661,1720495845550,-158.68956803,0.0002815,2]
[331553662,1720495845559,-600.0,0.00028314,2]
[331553663,1720495845570,-500.0,0.00028314,2]
[331553664,1720495845580,-152.51,0.00028429,2]
[331553665,1720495845590,-1000.0,0.000285,120]
[331553666,1720495845600,-478.02,0.00028725,2]
[331553667,1720495845610,-600.0,0.00028862,2]
[331553668,1720495845620,-1000.0,0.00029,120]
[331553669,1720495845630,-1900.0,0.00029136,2]
[331553670,1720495845639,-500.0,0.0002941,2]
[331553671,1720495845649,-1000.0,0.000295,120]
[331553672,1720495845658,-1900.0,0.00029684,2]
[331553673,1720495845668,-214.5,0.00029807,4]
[331553674,1720495845680,-600.0,0.00029958,2]
[331553675,1720495845690,-381.66299316,0.0003,30]
[331553676,1720495845700,-1000.0,0.0003,120]
[331553677,1720495845710,-558.0,0.0003,2]
[331553678,1720495845720,-419.65798839,0.0003,4]
[331553679,1720495845729,-323.29074975,0.0003,2]
[331553681,1720495845739,-969.13817889,0.0003,2]
[331553682,1720495845749,-450.07996405,0.0003,2]
[331553683,1720495845760,-150.0,0.0003,10]
[331553684,1720495845770,-151.070912,0.00030148,72]
[331553685,1720495845779,-1963.0551288,0.00030186,2]
[331553686,1720495845789,-1900.0,0.00030232,10]